fUST/lending_fUST_20250702
["ID","MTS","AMOUNT","RATE_DAILY","PERIOD"]
[368966544,1751415062782,-151.0,0.0002515,7]
[368966545,1751415062791,-151.0,0.0002515,7]
[368966546,1751415062802,-229.882169,0.0002515,7]
[368966547,1751415062811,-229.882169,0.0002515,7]
[368966548,1751415062822,-229.882169,0.0002515,7]
[368966549,1751415062831,-229.882169,0.0002515,7]
[368966550,1751415062841,-229.882169,0.0002515,7]
[368966551,1751415062851,-229.882169,0.0002515,7]
[368966552,1751415062860,-229.882169,0.0002515,7]
[368966553,1751415062870,-229.882165,0.0002515,7]
[368966554,1751415062880,-151.0,0.0002515,7]
[368966555,1751415062889,-151.0,0.0002515,7]
[368966556,1751415062899,-151.0,0.0002515,7]
[368966557,1751415062910,-178.407668,0.0002515,7]
[368966558,1751415062921,-374.937682,0.0002515,7]
[368966559,1751415062932,-374.937682,0.0002515,7]
[368966560,1751415062943,-374.937682,0.0002515,7]
[368966561,1751415062953,-374.937682,0.0002515,7]
[368966562,1751415062963,-374.937682,0.0002515,7]
[368966563,1751415062973,-374.937682,0.0002515,7]
[368966564,1751415062983,-374.937682,0.0002515,7]
[368966565,1751415062996,-374.937676,0.0002515,7]
[368966566,1751415063007,-1909.573739,0.0002515,7]
[368966567,1751415063016,-1909.573739,0.0002515,7]
[368966568,1751415063026,-1909.573739,0.0002515,7]
[368966569,1751415063036,-1909.573739,0.0002515,7]
[368966570,1751415063045,-1909.573739,0.0002515,7]
[368966571,1751415063055,-1909.573736,0.0002515,7]
[368966572,1751415063066,-178.177774,0.0002515,7]
[368966573,1751415063077,-178.177774,0.0002515,7]
[368966574,1751415063087,-178.177774,0.0002515,7]
[368966575,1751415063096,-178.177774,0.0002515,7]
[368966576,1751415063107,-178.177774,0.0002515,7]
[368966577,1751415063117,-178.177774,0.0002515,7]
[368966578,1751415063127,-157.338507,0.0002515,7]
[368966579,1751415063136,-157.338507,0.0002515,7]
[368966580,1751415063146,-157.338507,0.0002515,7]
[368966581,1751415063156,-157.338511,0.0002515,7]
[368966582,1751415063166,-195.927401,0.0002515,7]
[368966583,1751415063250,-195.927401,0.0002515,7]
[368966584,1751415063260,-195.927401,0.0002515,7]
[368966585,1751415063271,-195.927401,0.0002515,7]
[368966586,1751415063281,-195.927401,0.0002515,7]
[368966587,1751415063291,-195.927401,0.0002515,7]
[368966588,1751415063300,-151.0,0.00025151,7]
[368966589,1751415063311,-151.0,0.00025151,7]
[368966590,1751415063320,-151.0,0.00025151,7]
[368966591,1751415063330,-151.0,0.00025151,7]
[368966592,1751415063339,-151.0,0.00025151,7]
[368966593,1751415063349,-275.726064,0.00025151,7]
[368966594,1751415063358,-275.726064,0.00025151,7]
[368966595,1751415063368,-275.726064,0.00025151,7]
[368966596,1751415063378,-275.726064,0.00025151,7]
[368966597,1751415063387,-275.726064,0.00025151,7]
[368966598,1751415063396,-275.726064,0.00025151,7]
[368966599,1751415063406,-275.726064,0.00025151,7]
[368966600,1751415063415,-275.726064,0.00025151,7]
[368966601,1751415063426,-275.726064,0.00025151,7]
[368966602,1751415063435,-275.726064,0.00025151,7]
[368966603,1751415063445,-275.726064,0.00025151,7]
[368966604,1751415063454,-275.726064,0.00025151,7]
[368966605,1751415063464,-275.726064,0.00025151,7]
[368966606,1751415063474,-275.726056,0.00025151,7]
[368966607,1751415063483,-151.0,0.00025151,7]
[368966608,1751415063493,-178.177774,0.00025151,7]
[368966609,1751415063502,-178.17777,0.00025151,7]
[368966610,1751415063511,-195.927401,0.00025151,7]
[368966611,1751415063520,-195.927401,0.00025151,7]
[368966612,1751415063532,-195.927401,0.00025151,7]
[368966613,1751415063542,-195.927393,0.00025151,7]
[368966614,1751415063553,-151.0,0.00025158,7]
[368966615,1751415063562,-151.0,0.00025158,7]
[368966616,1751415063572,-151.0,0.00025159,7]
[368966617,1751415063582,-151.0,0.00025159,7]
[368966618,1751415063592,-151.0,0.00025159,7]
[368966619,1751415063602,-175.121582,0.00025159,7]
[368966620,1751415063612,-151.0,0.00025159,7]
[368966621,1751415063621,-151.0,0.00025159,7]
[368966622,1751415063631,-1190.0,0.00025164,2]
[368966623,1751415063641,-256.76,0.00025166,60]
[368966624,1751415063651,-309574.00664879,0.00025166,20]
[368966625,1751415063666,-962.28734057,0.00025199,20]
[368966626,1751415063678,-566.04,0.00025199,20]
[368966627,1751415063695,-2629.6668209,0.00025199,20]
[368966628,1751415063870,-296.92422535,0.00017231,2]
[368966629,1751415063966,-461.16099025,0.00017229,2]
[368966630,1751415063976,-19.27900975,0.00017231,2]
[368966631,1751415063992,-143.7967649,0.00017231,2]
[368966632,1751415064002,-460.0,0.00017231,2]
[368966633,1751415064012,-251.72,0.00017231,2]
[368966634,1751415064022,-460.0,0.00017231,2]
[368966635,1751415064032,-463.13074055,0.00017505,2]
[368966636,1751415064041,-460.0,0.00017505,2]
[368966637,1751415064051,-460.0,0.00017779,2]
[368966638,1751415064061,-460.0,0.00018053,2]
[368966639,1751415064071,-933.68,0.00019695,2]
[368966640,1751415064082,-933.68,0.00019969,2]
[368966641,1751415064091,-102.25890179,0.00020243,2]
[368966643,1751415127525,159.645859,0.00013699,2]
[368966645,1751415198833,1714.59112104,0.0001623,2]
[368966646,1751415198859,20000.0,0.0001623,2]
[368966647,1751415198884,3185.40887896,0.0001623,2]
[368966648,1751415250815,5000.0,0.000171,2]
[368966649,1751415522863,222.6864313,0.00016224,2]
[368966650,1751415780526,1464.4371993,0.00016227,2]
[368966651,1751415871948,-158.2402005,0.0001712,2]
[368966652,1751415871972,-8.94251882,0.00017124,2]
[368966653,1751415874526,-185.58356487,0.00017124,2]
[368966654,1751415880011,-165.95334301,0.00017124,2]
[368966655,1751415882695,-176.14673602,0.00017124,2]
[368966656,1751415884919,-176.2734417,0.00017124,2]
[368966657,1751415886598,-192.60707516,0.00017124,2]
[368966658,1751415929364,167.18271932,0.00017024,2]
[368966659,1751415944477,-3588.39752117,0.00017124,2]
[368966660,1751415944498,-158.2402005,0.00017124,2]
[368966661,1751415944520,-675.41786984,0.00017211,2]
[368966662,1751415944542,-467.05143954,0.00017217,2]
[368966663,1751415956094,-619.78001825,0.00017217,2]
[368966664,1751416043078,-113.16854221,0.00017217,2]
[368966665,1751416043100,-300.0,0.00017217,2]
[368966666,1751416043120,-300.0,0.00017218,2]
[368966667,1751416043140,-300.0,0.00017218,2]
[368966668,1751416043159,-300.0,0.00017218,2]
[368966669,1751416043179,-300.0,0.00017218,2]
[368966670,1751416043200,-1200.0,0.00017218,2]
[368966671,1751416043219,-10472.52271603,0.00017218,2]
[368966672,1751416046083,-900.45908013,0.00017218,2]
[368966673,1751416050095,-982.67952449,0.00017218,2]
[368966674,1751416088888,1716.7670657,0.00016352,2]
[368966675,1751416119177,8243.51770542,0.00017,2]
[368966676,1751416119199,16925.49413576,0.00017,2]
[368966677,1751416127811,6905.92996278,0.00015,2]
[368966678,1751416130070,16754.07755658,0.0001,2]
[368966679,1751416133127,5000.0,0.000171,2]
[368966680,1751416163318,165.95334301,0.00017046,2]
[368966686,1751416174955,159.645859,0.00013699,2]
[368966707,1751416231933,-545.02725288,0.00017203,2]
[368966708,1751416231943,-867.25959512,0.00017217,2]
[368966709,1751416231954,-12415.46139032,0.00017217,2]
[368966710,1751416231987,-3338.26835786,0.00017217,2]
[368966720,1751416237927,-254.7172477,0.00017216,2]
[368966721,1751416237937,-500.0,0.00017216,2]
[368966722,1751416237948,-500.0,0.00017216,2]
[368966723,1751416237958,-500.0,0.00017216,2]
[368966724,1751416237968,-500.0,0.00017216,2]
[368966725,1751416237978,-500.0,0.00017216,2]
[368966726,1751416237988,-500.0,0.00017216,2]
[368966727,1751416237998,-500.0,0.00017216,2]
[368966728,1751416238009,-500.0,0.00017216,2]
[368966729,1751416238019,-500.0,0.00017216,2]
[368966730,1751416238029,-500.0,0.00017216,2]
[368966731,1751416238039,-500.0,0.00017216,2]
[368966732,1751416238049,-500.0,0.00017216,2]
[368966733,1751416238059,-292.48977567,0.00017216,2]
[368966734,1751416238069,-500.0,0.00017216,2]
[368966735,1751416238079,-500.0,0.00017216,2]
[368966736,1751416238088,-644.86056656,0.00017216,2]
[368966737,1751416238099,-500.0,0.00017216,2]
[368966738,1751416238108,-500.0,0.00017216,2]
[368966739,1751416238118,-312.8247973,0.00017216,2]
[368966740,1751416238129,-500.0,0.00017216,2]
[368966741,1751416238139,-500.0,0.00017216,2]
[368966742,1751416238149,-500.0,0.00017216,2]
[368966743,1751416238160,-500.0,0.00017216,2]
[368966744,1751416238170,-500.0,0.00017216,2]
[368966745,1751416238180,-500.0,0.00017216,2]
[368966746,1751416238190,-500.0,0.00017216,2]
[368966747,1751416238201,-170.24639703,0.00017216,2]
[368966748,1751416238221,-550.0,0.00017216,2]
[368966749,1751416238232,-600.0,0.00017216,2]
[368966750,1751416238241,-500.0,0.00017216,2]
[368966751,1751416238252,-250.0,0.00017216,2]
[368966752,1751416238262,-500.0,0.00017216,2]
[368966753,1751416238272,-500.0,0.00017216,2]
[368966754,1751416238281,-500.0,0.00017216,2]
[368966755,1751416238292,-500.0,0.00017216,2]
[368966756,1751416238303,-500.0,0.00017216,2]
[368966757,1751416238312,-500.0,0.00017216,2]
[368966758,1751416238321,-500.0,0.00017216,2]
[368966759,1751416238331,-500.0,0.00017216,2]
[368966760,1751416238459,-500.0,0.00017216,2]
[368966761,1751416238471,-650.0,0.00017216,2]
[368966762,1751416238481,-500.0,0.00017216,2]
[368966763,1751416238491,-500.0,0.00017216,2]
[368966764,1751416238501,-500.0,0.00017216,2]
[368966765,1751416238511,-500.0,0.00017216,2]
[368966766,1751416238521,-500.0,0.00017216,2]
[368966767,1751416238531,-500.0,0.00017216,2]
[368966768,1751416238540,-500.0,0.00017216,2]
[368966769,1751416238551,-500.0,0.00017216,2]
[368966770,1751416238561,-500.0,0.00017216,2]
[368966771,1751416238571,-500.0,0.00017216,2]
[368966772,1751416238582,-500.0,0.00017216,2]
[368966773,1751416238593,-500.0,0.00017216,2]
[368966774,1751416238602,-500.0,0.00017216,2]
[368966775,1751416238612,-500.0,0.00017216,2]
[368966776,1751416238622,-500.0,0.00017216,2]
[368966777,1751416238631,-500.0,0.00017216,2]
[368966778,1751416238641,-500.0,0.00017216,2]
[368966779,1751416238650,-500.0,0.00017216,2]
[368966780,1751416238659,-500.0,0.00017216,2]
[368966781,1751416238669,-500.0,0.00017216,2]
[368966782,1751416238678,-500.0,0.00017216,2]
[368966783,1751416238689,-33379.0106567,0.00017217,2]
[368966784,1751416238698,-650.34,0.00017219,3]
[368966785,1751416238708,-505.07,0.00017219,3]
[368966786,1751416238717,-433.56,0.0001722,3]
[368966787,1751416238727,-216.78,0.0001722,3]
[368966788,1751416238738,-460.0,0.00017221,2]
[368966789,1751416238747,-460.0,0.00017221,2]
[368966790,1751416238756,-556.79,0.00017221,2]
[368966791,1751416238766,-460.0,0.00017221,2]
[368966792,1751416238776,-310.10689065,0.00017221,2]
[368966793,1751416238786,-460.0,0.00017221,2]
[368966794,1751416238796,-460.0,0.00017221,2]
[368966795,1751416238805,-460.0,0.00017221,2]
[368966796,1751416238815,-460.0,0.00017221,2]
[368966797,1751416238825,-426.57137781,0.00017221,2]
[368966798,1751416238835,-460.0,0.00017221,2]
[368966799,1751416238845,-460.0,0.00017221,2]
[368966800,1751416238855,-460.92140007,0.00017221,2]
[368966801,1751416238864,-460.0,0.00017221,2]
[368966802,1751416238875,-460.0,0.00017221,2]
[368966803,1751416238884,-460.0,0.00017221,2]
[368966804,1751416238894,-460.0,0.00017221,2]
[368966805,1751416238903,-460.0,0.00017221,2]
[368966806,1751416238913,-460.0,0.00017221,2]
[368966807,1751416238923,-460.0,0.00017221,2]
[368966808,1751416238932,-460.0,0.00017221,2]
[368966809,1751416238942,-460.0,0.00017221,2]
[368966810,1751416238951,-460.0,0.00017221,2]
[368966811,1751416238961,-460.0,0.00017221,2]
[368966812,1751416238970,-947.37,0.00017221,2]
[368966813,1751416238979,-507.88,0.00017221,2]
[368966814,1751416238988,-473.78517701,0.00017222,2]
[368966815,1751416238998,-500.0,0.00017222,2]
[368966816,1751416239008,-500.0,0.00017222,2]
[368966817,1751416239017,-167.05465783,0.00017222,2]
[368966818,1751416239027,-500.0,0.00017222,2]
[368966819,1751416239036,-500.0,0.00017222,2]
[368966820,1751416239046,-500.0,0.00017222,2]
[368966821,1751416239056,-460.0,0.00017224,2]
[368966822,1751416239065,-251.50957599,0.00017224,2]
[368966823,1751416239074,-460.0,0.00017224,2]
[368966824,1751416239084,-470.51715838,0.00017224,2]
[368966825,1751416239094,-460.0,0.00017224,2]
[368966826,1751416239103,-462.62287556,0.00017224,2]
[368966827,1751416239114,-460.0,0.00017224,2]
[368966828,1751416239124,-460.0,0.00017224,2]
[368966829,1751416239135,-460.0,0.00017224,2]
[368966830,1751416239149,-460.0,0.00017224,2]
[368966831,1751416239158,-460.0,0.00017224,2]
[368966832,1751416239169,-460.0,0.00017224,2]
[368966833,1751416239179,-460.0,0.00017224,2]
[368966834,1751416239190,-460.0,0.00017224,2]
[368966835,1751416239201,-460.0,0.00017224,2]
[368966836,1751416239211,-460.0,0.00017224,2]
[368966837,1751416239220,-460.0,0.00017224,2]
[368966838,1751416239230,-460.0,0.00017224,2]
[368966839,1751416239239,-460.0,0.00017224,2]
[368966840,1751416239248,-460.0,0.00017224,2]
[368966841,1751416239258,-460.0,0.00017224,2]
[368966842,1751416239267,-460.0,0.00017224,2]
[368966843,1751416239276,-460.0,0.00017224,2]
[368966844,1751416239286,-460.0,0.00017224,2]
[368966845,1751416239296,-460.0,0.00017224,2]
[368966846,1751416239306,-460.0,0.00017224,2]
[368966847,1751416239315,-408.42389898,0.00017224,2]
[368966848,1751416239324,-460.0,0.00017224,2]
[368966849,1751416239333,-460.0,0.00017224,2]
[368966850,1751416239343,-460.0,0.00017224,2]
[368966851,1751416239352,-460.0,0.00017224,2]
[368966852,1751416239361,-460.0,0.00017224,2]
[368966853,1751416239371,-460.0,0.00017224,2]
[368966854,1751416239383,-460.0,0.00017224,2]
[368966855,1751416239392,-460.0,0.00017224,2]
[368966856,1751416239402,-394.97,0.00017224,2]
[368966857,1751416239411,-460.0,0.00017224,2]
[368966858,1751416239421,-231.2,0.00017224,2]
[368966859,1751416239430,-460.0,0.00017224,2]
[368966860,1751416239440,-460.0,0.00017224,2]
[368966861,1751416239451,-460.0,0.00017224,2]
[368966862,1751416239460,-460.0,0.00017224,2]
[368966863,1751416239470,-460.0,0.00017224,2]
[368966864,1751416239480,-460.0,0.00017224,2]
[368966865,1751416239489,-460.0,0.00017224,2]
[368966866,1751416239498,-570.18366022,0.00017224,2]
[368966867,1751416239508,-460.0,0.00017224,2]
[368966868,1751416239517,-460.0,0.00017224,2]
[368966869,1751416239526,-460.0,0.00017224,2]
[368966870,1751416239536,-460.0,0.00017224,2]
[368966871,1751416239546,-460.0,0.00017224,2]
[368966872,1751416239555,-460.0,0.00017224,2]
[368966873,1751416239564,-460.0,0.00017224,2]
[368966874,1751416239576,-460.0,0.00017224,2]
[368966875,1751416239586,-460.0,0.00017224,2]
[368966876,1751416239596,-460.0,0.00017224,2]
[368966877,1751416239605,-460.0,0.00017224,2]
[368966878,1751416239614,-460.0,0.00017224,2]
[368966879,1751416239623,-460.0,0.00017224,2]
[368966880,1751416239633,-460.0,0.00017224,2]
[368966881,1751416239642,-460.0,0.00017224,2]
[368966882,1751416239652,-460.0,0.00017224,2]
[368966883,1751416239662,-460.0,0.00017224,2]
[368966884,1751416239672,-460.0,0.00017224,2]
[368966885,1751416239682,-460.0,0.00017224,2]
[368966886,1751416239692,-460.0,0.00017224,2]
[368966887,1751416239703,-460.0,0.00017224,2]
[368966888,1751416239712,-460.0,0.00017224,2]
[368966889,1751416239723,-460.0,0.00017224,2]
[368966891,1751416239733,-460.0,0.00017224,2]
[368966892,1751416239743,-460.0,0.00017224,2]
[368966893,1751416239752,-460.0,0.00017224,2]
[368966894,1751416239762,-490.49139861,0.00017224,2]
[368966895,1751416239772,-460.0,0.00017224,2]
[368966896,1751416239782,-460.0,0.00017224,2]
[368966897,1751416239792,-460.0,0.00017224,2]
[368966898,1751416239801,-185.58356487,0.00017224,2]
[368966899,1751416239812,-460.0,0.00017224,2]
[368966900,1751416239822,-160.0,0.00017226,2]
[368966901,1751416239832,-504.32785186,0.00017227,2]
[368966902,1751416239845,-460.0,0.00017229,2]
[368966903,1751416239854,-460.0,0.00017229,2]
[368966904,1751416239864,-460.0,0.00017229,2]
[368966905,1751416239873,-460.0,0.00017229,2]
[368966906,1751416239883,-460.0,0.00017229,2]
[368966907,1751416239893,-460.0,0.00017229,2]
[368966908,1751416239903,-460.0,0.00017229,2]
[368966909,1751416239914,-315.77731311,0.00017229,2]
[368966910,1751416239924,-460.0,0.00017229,2]
[368966911,1751416239934,-404.87389195,0.00017229,2]
[368966912,1751416239943,-460.0,0.00017229,2]
[368966913,1751416239952,-460.0,0.00017229,2]
[368966914,1751416239962,-460.0,0.00017229,2]
[368966915,1751416239972,-460.0,0.00017229,2]
[368966916,1751416239982,-460.0,0.00017229,2]
[368966917,1751416239991,-460.0,0.00017229,2]
[368966918,1751416240001,-460.0,0.00017229,2]
[368966919,1751416240011,-461.30459053,0.00017229,2]
[368966920,1751416240021,-460.0,0.00017229,2]
[368966921,1751416240031,-460.0,0.00017229,2]
[368966922,1751416240041,-460.0,0.00017229,2]
[368966923,1751416240050,-460.0,0.00017229,2]
[368966924,1751416240059,-460.0,0.00017229,2]
[368966925,1751416240069,-332.85058697,0.00017229,2]
[368966926,1751416240079,-192.48805887,0.00017229,2]
[368966927,1751416240089,-460.0,0.00017229,2]
[368966928,1751416240099,-460.0,0.00017229,2]
[368966930,1751416240108,-460.0,0.00017229,2]
[368966932,1751416240118,-460.0,0.00017229,2]
[368966934,1751416240127,-462.49736194,0.00017229,2]
[368966936,1751416240136,-460.0,0.00017229,2]
[368966938,1751416240146,-461.61652202,0.00017229,2]
[368966940,1751416240155,-460.0,0.00017229,2]
[368966942,1751416240164,-460.0,0.00017229,2]
[368966944,1751416240174,-460.0,0.00017229,2]
[368966946,1751416240183,-460.0,0.00017229,2]
[368966948,1751416240192,-460.0,0.00017229,2]
[368966950,1751416240202,-460.0,0.00017229,2]
[368966952,1751416240212,-460.0,0.00017229,2]
[368966954,1751416240222,-460.0,0.00017229,2]
[368966956,1751416240232,-460.0,0.00017229,2]
[368966958,1751416240241,-460.0,0.00017229,2]
[368966960,1751416240251,-460.0,0.00017229,2]
[368966962,1751416240259,-460.0,0.00017229,2]
[368966964,1751416240269,-461.70510729,0.00017229,2]
[368966966,1751416240278,-460.0,0.00017229,2]
[368966968,1751416240287,-460.0,0.00017229,2]
[368966970,1751416240297,-460.0,0.00017229,2]
[368966972,1751416240306,-460.0,0.00017229,2]
[368966974,1751416240316,-206.03139147,0.00017229,2]
[368966977,1751416240327,-460.0,0.00017229,2]
[368966978,1751416240336,-460.0,0.00017229,2]
[368966980,1751416240347,-460.0,0.00017229,2]
[368966983,1751416240356,-460.0,0.0001723,2]
[368966984,1751416240366,-460.0,0.0001723,2]
[368966987,1751416240379,-460.0,0.0001723,2]
[368966989,1751416240389,-342.5979775,0.0001723,2]
[368966991,1751416240398,-460.0,0.0001723,2]
[368966993,1751416240407,-460.0,0.0001723,2]
[368966995,1751416240416,-460.0,0.0001723,2]
[368966997,1751416240426,-460.0,0.0001723,2]
[368966999,1751416240435,-460.0,0.0001723,2]
[368967001,1751416240444,-460.0,0.0001723,2]
[368967003,1751416240456,-460.0,0.0001723,2]
[368967004,1751416240465,-460.57201429,0.0001723,2]
[368967006,1751416240474,-460.0,0.0001723,2]
[368967008,1751416240483,-460.0,0.0001723,2]
[368967011,1751416240493,-460.0,0.0001723,2]
[368967013,1751416240503,-495.08537339,0.0001723,2]
[368967015,1751416240513,-460.0,0.0001723,2]
[368967017,1751416240524,-460.0,0.0001723,2]
[368967019,1751416240533,-460.0,0.0001723,2]
[368967021,1751416240544,-460.0,0.0001723,2]
[368967023,1751416240554,-460.0,0.0001723,2]
[368967025,1751416240565,-460.0,0.0001723,2]
[368967027,1751416240575,-505.97894725,0.0001723,2]
[368967029,1751416240585,-460.0,0.0001723,2]
[368967031,1751416240594,-460.0,0.0001723,2]
[368967033,1751416240603,-460.0,0.0001723,2]
[368967035,1751416240612,-460.0,0.0001723,2]
[368967037,1751416240621,-460.0,0.0001723,2]
[368967039,1751416240631,-460.0,0.0001723,2]
[368967041,1751416240641,-460.0,0.0001723,2]
[368967043,1751416240650,-460.0,0.0001723,2]
[368967045,1751416240659,-460.0,0.0001723,2]
[368967047,1751416240669,-460.0,0.0001723,2]
[368967049,1751416240678,-460.0,0.0001723,2]
[368967051,1751416240687,-460.0,0.0001723,2]
[368967053,1751416240697,-460.0,0.0001723,2]
[368967055,1751416240707,-460.0,0.0001723,2]
[368967057,1751416240716,-460.0,0.0001723,2]
[368967059,1751416240725,-460.0,0.0001723,2]
[368967061,1751416240735,-460.0,0.0001723,2]
[368967062,1751416240744,-460.0,0.0001723,2]
[368967063,1751416240754,-415.63177093,0.00017231,2]
[368967064,1751416240764,-460.0,0.00017231,2]
[368967065,1751416240773,-460.83205486,0.00017231,2]
[368967066,1751416240783,-460.0,0.00017231,2]
[368967067,1751416240792,-460.0,0.00017231,2]
[368967068,1751416240803,-460.7566296,0.00017231,2]
[368967069,1751416240812,-460.0,0.00017231,2]
[368967070,1751416240822,-151.0,0.00017231,2]
[368967071,1751416240831,-263.61817,0.00017231,2]
[368967072,1751416240841,-460.0,0.00017231,2]
[368967073,1751416240850,-460.0,0.00017231,2]
[368967076,1751416240958,-460.0,0.00017231,2]
[368967078,1751416240967,-460.0,0.00017231,2]
[368967080,1751416240977,-460.0,0.00017231,2]
[368967082,1751416240987,-460.0,0.00017231,2]
[368967084,1751416240997,-460.0,0.00017231,2]
[368967086,1751416241006,-460.0,0.00017231,2]
[368967088,1751416241016,-151.0,0.00017234,2]
[368967090,1751416241025,-151.0,0.00017234,2]
[368967092,1751416241035,-250.133199,0.00017234,2]
[368967094,1751416241045,-151.0,0.00017234,2]
[368967096,1751416241054,-151.0,0.00017234,2]
[368967097,1751416241063,-151.0,0.00017234,2]
[368967099,1751416241072,-242.675344,0.00017234,2]
[368967101,1751416241082,-151.0,0.00017238,2]
[368967103,1751416241091,-151.0,0.00017238,2]
[368967105,1751416241101,-503.44186277,0.00017273,2]
[368967107,1751416241111,-500.0,0.00017273,2]
[368967109,1751416241120,-505.07328986,0.00017273,2]
[368967111,1751416241129,-500.0,0.00017273,2]
[368967113,1751416241138,-151.0,0.00017437,2]
[368967115,1751416241147,-151.0,0.00017437,2]
[368967117,1751416241157,-151.36624201,0.00017491,2]
[368967119,1751416241167,-500.0,0.00017491,2]
[368967121,1751416241177,-151.0,0.00017491,2]
[368967123,1751416241187,-151.0,0.00017491,2]
[368967125,1751416241195,-151.0,0.00017491,2]
[368967127,1751416241205,-151.0,0.00017491,2]
[368967129,1751416241214,-460.0,0.00017495,2]
[368967131,1751416241224,-460.0,0.00017495,2]
[368967133,1751416241233,-460.0,0.00017495,2]
[368967135,1751416241242,-460.0,0.00017495,2]
[368967137,1751416241252,-189.54,0.00017495,2]
[368967139,1751416241261,-460.0,0.00017495,2]
[368967141,1751416241270,-460.0,0.00017495,2]
[368967143,1751416241280,-460.0,0.00017495,2]
[368967145,1751416241289,-460.0,0.00017495,2]
[368967147,1751416241299,-460.0,0.00017495,2]
[368967149,1751416241307,-597.60385159,0.00017495,2]
[368967151,1751416241317,-460.0,0.00017495,2]
[368967153,1751416241327,-947.37,0.00017495,2]
[368967155,1751416241336,-507.88,0.00017495,2]
[368967157,1751416241346,-460.0,0.00017498,2]
[368967159,1751416241355,-492.48,0.00017498,2]
[368967161,1751416241365,-460.0,0.00017498,2]
[368967163,1751416241375,-460.0,0.00017498,2]
[368967165,1751416241387,-180.82526387,0.00017498,2]
[368967167,1751416241396,-502.49744723,0.00017498,2]
[368967169,1751416241405,-214.13,0.00017498,2]
[368967171,1751416241415,-460.0,0.00017498,2]
[368967173,1751416241425,-460.0,0.00017498,2]
[368967175,1751416241434,-460.0,0.00017498,2]
[368967177,1751416241443,-336.27,0.00017498,2]
[368967180,1751416241454,-460.0,0.00017498,2]
[368967182,1751416241464,-460.0,0.00017498,2]
[368967184,1751416241473,-505.86,0.00017498,2]
[368967186,1751416241482,-460.0,0.00017498,2]
[368967188,1751416241492,-460.0,0.00017498,2]
[368967190,1751416241501,-460.0,0.00017498,2]
[368967192,1751416241511,-460.0,0.00017498,2]
[368967194,1751416241520,-321.97,0.00017498,2]
[368967196,1751416241530,-460.0,0.00017498,2]
[368967198,1751416241539,-460.0,0.00017498,2]
[368967200,1751416241548,-460.0,0.00017498,2]
[368967202,1751416241558,-460.0,0.00017498,2]
[368967204,1751416241567,-460.0,0.00017498,2]
[368967206,1751416241576,-460.0,0.00017498,2]
[368967208,1751416241585,-460.0,0.00017498,2]
[368967210,1751416241595,-460.0,0.00017498,2]
[368967212,1751416241604,-460.0,0.00017498,2]
[368967214,1751416241613,-460.0,0.00017498,2]
[368967216,1751416241623,-460.0,0.00017498,2]
[368967218,1751416241632,-460.0,0.00017498,2]
[368967219,1751416241641,-460.0,0.00017498,2]
[368967221,1751416241650,-460.0,0.00017498,2]